[Event "15th Arad Open 2022"]
[Site "Arad"]
[Date "2022.08.09"]
[Round "1.17"]
[White "Hoanca, Alexia-Ioana"]
[Black "Herczeg, Marcell"]
[Result "0-1"]
[ECO "B30"]
[WhiteElo "1761"]
[BlackElo "2044"]
[Annotator "RC"]
[PlyCount "38"]
[EventDate "2022.08.08"]
[EventType "swiss"]
[EventCountry "ROU"]
[SourceTitle "playchess.com"]
[Source "ChessBase"]
[SourceQuality "1"]
[TimeControl "5400+30"]

1. e4 {[%emt 0:00:10]} c5 {[%emt 0:00:08]} 2. Nf3 {[%emt 0:00:30]} e6 {[%emt 0:00:30]} 3. d3 {[%emt 0:00:30]} Nc6 {[%emt 0:00:30]} 4. Nbd2 {[%emt 0:00:30]} Nf6 {[%emt 0:00:30]} 5. g3 {[%emt 0:00:30]} Be7 {[%emt 0:00:30]} 6. Bg2 {[%emt 0:00:30]} Qc7 {[%emt 0:00:30]} 7. O-O {[%emt 0:00:30]} d6 {[%emt 0:00:30]} 8. Re1 {[%emt 0:00:30]} O-O {[%emt 0:00:30]} 9. h4 {[%emt 0:00:30]} Rd8 {[%emt 0:00:30]} 10. Nf1 {[%emt 0:00:30]} b5 {[%emt 0:00:30]} 11. N1h2 {[%emt 0:00:30]} e5 {[%emt 0:00:30]} 12. c3 {[%emt 0:00:30]} Rb8 {[%emt 0:00:30]} 13. Ng5 {[%emt 0:00:30]} h6 {[%emt 0:00:30]} 14. Nh3 {[%emt 0:00:30]} d5 {[%emt 0:00:30]} 15. exd5 {[%emt 0:00:30]} Nxd5 {[%emt 0:00:30]} 16. Qe2 {[%emt 0:00:30]} b4 {[%emt 0:00:30]} 17. g4 {[%emt 0:00:30]} bxc3 {[%emt 0:00:30]} 18. g5 {[%emt 0:00:30]} Nd4 {[%emt 0:00:30]} 19. Qxe5 {[%emt 0:00:30]} Bd6 {[%emt 0:00:30]} 0-1

[Event "15th Arad Open 2022"]
[Site "Arad"]
[Date "2022.08.09"]
[Round "1.18"]
[White "Cucu, Ioan-Mircea"]
[Black "Magold, Victor"]
[Result "0-1"]
[ECO "B14"]
[WhiteElo "1763"]
[BlackElo "2074"]
[Annotator "RC"]
[PlyCount "76"]
[EventDate "2022.08.08"]
[EventType "swiss"]
[EventCountry "ROU"]
[SourceTitle "playchess.com"]
[Source "ChessBase"]
[SourceQuality "1"]
[TimeControl "5400+30"]

1. e4 {[%emt 0:00:02]} c6 {[%emt 0:00:23]} 2. Nf3 {[%emt 0:00:18]} d5 {[%emt 0:00:33]} 3. exd5 {[%emt 0:00:30]} cxd5 {[%emt 0:00:30]} 4. d4 {[%emt 0:00:30]} Nf6 {[%emt 0:00:30]} 5. c4 {[%emt 0:00:30]} g6 {[%emt 0:00:30]} 6. Nc3 {[%emt 0:00:30]} Bg7 {[%emt 0:00:30]} 7. cxd5 {[%emt 0:00:30]} O-O {[%emt 0:00:30]} 8. Bc4 {[%emt 0:00:30]} Nbd7 {[%emt 0:00:30]} 9. Bg5 {[%emt 0:00:30]} Nb6 {[%emt 0:00:30]} 10. Bxf6 {[%emt 0:00:30]} Bxf6 {[%emt 0:00:30]} 11. Bb3 {[%emt 0:00:30]} Bg4 {[%emt 0:00:30]} 12. Qd3 {[%emt 0:00:30]} Bxf3 {[%emt 0:00:30]} 13. gxf3 {[%emt 0:00:30]} Qd7 {[%emt 0:00:30]} 14. O-O-O {[%emt 0:00:30]} a5 {[%emt 0:00:30]} 15. a4 {[%emt 0:00:30]} Rfc8 {[%emt 0:00:30]} 16. Kb1 {[%emt 0:00:30]} Qd6 {[%emt 0:00:30]} 17. Qb5 {[%emt 0:00:30]} Qb4 {[%emt 0:00:30]} 18. h4 {[%emt 0:00:30]} Bxd4 {[%emt 0:00:30]} 19. Qxb4 {[%emt 0:00:30]} axb4 {[%emt 0:00:30]} 20. Rxd4 {[%emt 0:00:30]} bxc3 {[%emt 0:00:30]} 21. Rb4 {[%emt 0:00:30]} Nd7 {[%emt 0:00:30]} 22. h5 {[%emt 0:00:30]} cxb2 {[%emt 0:00:30]} 23. hxg6 {[%emt 0:00:30]} hxg6 {[%emt 0:00:30]} 24. Rbh4 {[%emt 0:00:30]} Kg7 {[%emt 0:00:30]} 25. Kxb2 {[%emt 0:00:30]} Ne5 {[%emt 0:00:30]} 26. Rd1 {[%emt 0:00:30]} Nxf3 {[%emt 0:00:30]} 27. Re4 {[%emt 0:00:30]} Rc7 {[%emt 0:00:30]} 28. d6 {[%emt 0:00:30]} exd6 {[%emt 0:00:30]} 29. Rxd6 {[%emt 0:00:30]} Rh8 {[%emt 0:00:30]} 30. Re3 {[%emt 0:00:30]} Ng5 {[%emt 0:00:30]} 31. f4 {[%emt 0:00:30]} Rh2+ {[%emt 0:00:30]} 32. Ka3 {[%emt 0:00:30]} Nh7 {[%emt 0:00:30]} 33. Rg3 {[%emt 0:00:30]} Rf2 {[%emt 0:00:30]} 34. Rd4 {[%emt 0:00:30]} Nf6 {[%emt 0:00:30]} 35. Rb4 {[%emt 0:00:30]} Re7 {[%emt 0:00:30]} 36. Rc3 {[%emt 0:00:30]} Ne4 {[%emt 0:00:30]} 37. Re3 {[%emt 0:00:30]} Nd2 {[%emt 0:00:30]} 38. Rxe7 {[%emt 0:00:30]} Nb1# {[%emt 0:00:30]} 0-1

[Event "15th Arad Open 2022"]
[Site "Arad"]
[Date "2022.08.09"]
[Round "1.19"]
[White "Pauwels, Xander"]
[Black "Lup, Constantin-Ionel"]
[Result "1-0"]
[ECO "E69"]
[WhiteElo "2040"]
[BlackElo "1722"]
[Annotator "RC"]
[PlyCount "56"]
[EventDate "2022.08.08"]
[EventType "swiss"]
[EventCountry "ROU"]
[SourceTitle "playchess.com"]
[Source "ChessBase"]
[SourceQuality "1"]
[TimeControl "5400+30"]

1. d4 {[%emt 0:00:12]} d6 {[%emt 0:00:22]} 2. Nf3 {[%emt 0:00:30]} g6 {[%emt 0:00:30]} 3. g3 {[%emt 0:00:30]} Bg7 {[%emt 0:00:30]} 4. Bg2 {[%emt 0:00:30]} Nf6 {[%emt 0:00:30]} 5. c4 {[%emt 0:00:30]} O-O {[%emt 0:00:30]} 6. Nc3 {[%emt 0:00:30]} Nbd7 {[%emt 0:00:30]} 7. O-O {[%emt 0:00:30]} e5 {[%emt 0:00:30]} 8. e4 {[%emt 0:00:30]} c6 {[%emt 0:00:30]} 9. h3 {[%emt 0:00:30]} Re8 {[%emt 0:00:30]} 10. Re1 {[%emt 0:00:30]} exd4 {[%emt 0:00:30]} 11. Nxd4 {[%emt 0:00:30]} Nc5 {[%emt 0:00:30]} 12. Rb1 {[%emt 0:00:30]} Nfd7 {[%emt 0:00:30]} 13. b4 {[%emt 0:00:30]} Bxd4 {[%emt 0:00:30]} 14. Qxd4 {[%emt 0:00:30]} Ne6 {[%emt 0:00:30]} 15. Qxd6 {[%emt 0:00:30]} Qf6 {[%emt 0:00:30]} 16. Bb2 {[%emt 0:00:30]} Qe7 {[%emt 0:00:30]} 17. Qxe7 {[%emt 0:00:30]} Rxe7 {[%emt 0:00:30]} 18. Nd1 {[%emt 0:00:30]} Nc7 {[%emt 0:00:30]} 19. Ne3 {[%emt 0:00:30]} a5 {[%emt 0:00:30]} 20. a3 {[%emt 0:00:30]} h5 {[%emt 0:00:30]} 21. Red1 {[%emt 0:00:30]} b6 {[%emt 0:00:30]} 22. e5 {[%emt 0:00:30]} Bb7 {[%emt 0:00:30]} 23. b5 {[%emt 0:00:30]} Nxe5 {[%emt 0:00:30]} 24. Bxe5 {[%emt 0:00:30]} Rxe5 {[%emt 0:00:30]} 25. bxc6 {[%emt 0:00:30]} Ba6 {[%emt 0:00:30]} 26. Nd5 {[%emt 0:00:30]} Ra7 {[%emt 0:00:30]} 27. Nxb6 {[%emt 0:00:30]} Rc5 {[%emt 0:00:30]} 28. Rd7 {[%emt 0:00:30]} Re5 {[%emt 1:29:53]} 1-0

[Event "15th Arad Open 2022"]
[Site "Arad"]
[Date "2022.08.09"]
[Round "1.20"]
[White "Hirsu, Adrian"]
[Black "Moerman, Thomas"]
[Result "0-1"]
[ECO "D02"]
[WhiteElo "1696"]
[BlackElo "2026"]
[Annotator "RC"]
[PlyCount "70"]
[EventDate "2022.08.08"]
[EventType "swiss"]
[EventCountry "ROU"]
[SourceTitle "playchess.com"]
[Source "ChessBase"]
[SourceQuality "1"]
[TimeControl "5400+30"]

1. d4 {[%emt 0:00:01]} Nf6 {[%emt 0:00:09]} 2. Bf4 {[%emt 1:31:29]} d5 {[%emt 1:31:21]} 3. Nf3 {[%emt 0:00:00]} c5 {[%emt 0:00:00]} 4. e3 {[%emt 0:00:00]} Nc6 {[%emt 0:00:00]} 5. Bb5 {[%emt 0:00:00]} Bd7 {[%emt 0:00:00]} 6. Bxc6 {[%emt 0:00:00]} Bxc6 {[%emt 0:00:00]} 7. O-O {[%emt 0:00:00]} Qb6 {[%emt 0:00:00]} 8. b3 {[%emt 0:00:00]} e6 {[%emt 0:00:00]} 9. Nbd2 {[%emt 0:00:00]} Be7 {[%emt 0:00:00]} 10. a4 {[%emt 0:00:00]} O-O {[%emt 0:00:00]} 11. Ne5 {[%emt 0:00:00]} cxd4 {[%emt 0:00:00]} 12. a5 {[%emt 0:00:00]} Qa6 {[%emt 0:00:00]} 13. exd4 {[%emt 0:00:00]} Bb4 {[%emt 0:00:00]} 14. Nxc6 {[%emt 0:00:00]} Qxc6 {[%emt 0:00:00]} 15. Ra4 {[%emt 0:00:00]} Bc3 {[%emt 0:00:00]} 16. Be5 {[%emt 0:00:00]} Nd7 {[%emt 0:00:00]} 17. Nf3 {[%emt 0:00:00]} Qb5 {[%emt 0:00:00]} 18. Bd6 {[%emt 0:00:00]} Rfc8 {[%emt 0:00:00]} 19. a6 {[%emt 0:00:00]} bxa6 {[%emt 0:00:00]} 20. Ne5 {[%emt 0:00:00]} Nb6 {[%emt 0:00:00]} 21. Qh5 {[%emt 0:00:00]} Qe8 {[%emt 0:00:00]} 22. Nf3 {[%emt 0:00:00]} Nxa4 {[%emt 0:00:00]} 23. bxa4 {[%emt 0:00:00]} Ba5 {[%emt 0:00:00]} 24. Rb1 {[%emt 0:00:00]} Bc7 {[%emt 0:00:00]} 25. Ng5 {[%emt 0:00:00]} h6 {[%emt 0:00:00]} 26. Bxc7 {[%emt 0:00:00]} Rxc7 {[%emt 0:00:00]} 27. Nf3 {[%emt 0:00:00]} Rb8 {[%emt 0:00:00]} 28. Re1 {[%emt 0:00:00]} Qxa4 {[%emt 0:00:00]} 29. h4 {[%emt 0:00:00]} Qxc2 {[%emt 0:00:00]} 30. Kh2 {[%emt 0:00:00]} Qxf2 {[%emt 0:00:00]} 31. Rg1 {[%emt 0:00:00]} Rb2 {[%emt 0:00:00]} 32. Qe5 {[%emt 0:00:00]} Rc3 {[%emt 0:00:00]} 33. Kh3 {[%emt 0:00:00]} Rxf3+ {[%emt 0:00:00]} 34. gxf3 {[%emt 0:00:00]} Qxg1 {[%emt 0:00:00]} 35. Qb8+ {[%emt 0:00:00]} Rxb8 {[%emt 0:00:00]} 0-1

[Event "15th Arad Open 2022"]
[Site "Arad"]
[Date "2022.08.09"]
[Round "2.1"]
[White "Manolache, Marius"]
[Black "Veneteanu, Mihai"]
[Result "1-0"]
[ECO "A45"]
[WhiteElo "2469"]
[BlackElo "2025"]
[Annotator "RC"]
[PlyCount "123"]
[EventDate "2022.08.08"]
[EventType "swiss"]
[EventCountry "ROU"]
[SourceTitle "playchess.com"]
[Source "ChessBase"]
[SourceQuality "1"]
[TimeControl "5400+30"]

1. d4 {[%emt 0:00:05]} Nf6 {[%emt 0:00:08]} 2. Bg5 {[%emt 0:00:07]} c5 {[%emt 0:00:06]} 3. d5 {[%emt 0:00:12]} Qb6 {[%emt 0:00:06]} 4. Nc3 {[%emt 0:00:08]} Qxb2 {[%emt 0:00:05]} 5. Bd2 {[%emt 0:00:05]} Qb6 {[%emt 0:00:11]} 6. e4 {[%emt 0:00:09]} e5 {[%emt 0:00:09]} 7. g4 {[%emt 0:03:42]} h6 {[%emt 0:04:41]} 8. h4 {[%emt 0:02:12]} d6 {[%emt 0:01:33]} 9. Rb1 {[%emt 0:04:33]} Qd8 {[%emt 0:03:05]} 10. Bb5+ {[%emt 0:01:13]} Nbd7 {[%emt 0:03:19]} 11. Qf3 {[%emt 0:16:18]} a6 {[%emt 0:30:59]} 12. Be2 {[%emt 1:07:46]} b5 {[%emt 0:11:58]} 13. g5 {[%emt 0:00:00]} Ng8 {[%emt 0:00:42]} 14. Nd1 {[%emt 0:00:00]} h5 {[%emt 0:10:45]} 15. g6 {[%emt 0:00:00]} fxg6 {[%emt 0:01:18]} 16. Qg3 {[%emt 0:00:00]} Qf6 {[%emt 0:00:44]} 17. Rb3 {[%emt 0:00:00]} Qf7 {[%emt 0:02:27]} 18. Nh3 {[%emt 0:00:00]} Ndf6 {[%emt 0:00:34]} 19. Ng5 {[%emt 0:00:00]} Qc7 {[%emt 0:03:22]} 20. Ra3 {[%emt 0:00:00]} c4 {[%emt 0:08:29]} 21. Ra5 {[%emt 0:00:00]} Rb8 {[%emt 0:04:08]} 22. Bb4 {[%emt 0:00:00]} Nh6 {[%emt 0:04:03]} 23. Nc3 {[%emt 0:00:00]} Nf7 {[%emt 0:05:15]} 24. Ne6 {[%emt 0:00:00]} Qe7 {[%emt 0:00:02]} 25. Bf1 {[%emt 0:00:00]} Rh6 {[%emt 0:03:07]} 26. Bh3 {[%emt 0:00:00]} Bxe6 {[%emt 0:00:46]} 27. Bxe6 {[%emt 0:00:00]} Rb6 {[%emt 0:01:01]} 28. Qe3 {[%emt 0:00:00]} Qb7 {[%emt 0:00:36]} 29. Bc8 {[%emt 0:00:00]} Qb8 {[%emt 0:00:43]} 30. Bxa6 {[%emt 0:00:00]} Ng4 {[%emt 0:00:27]} 31. Qe2 {[%emt 0:02:04]} Be7 {[%emt 0:00:38]} 32. f3 {[%emt 0:01:03]} Nf6 {[%emt 0:00:01]} 33. Rxb5 {[%emt 0:00:54]} g5 {[%emt 0:00:17]} 34. Qe3 {[%emt 0:00:38]} Nd7 {[%emt 0:01:10]} 35. Rg1 {[%emt 0:00:20]} gxh4 {[%emt 0:00:33]} 36. Rxg7 {[%emt 0:00:09]} Rh8 {[%emt 0:00:23]} 37. Qg1 {[%emt 0:00:29]} Bf6 {[%emt 0:00:31]} 38. Rg6 {[%emt 0:01:38]} Ke7 {[%emt 0:00:25]} 39. a4 {[%emt 0:02:15]} h3 {[%emt 0:00:20]} 40. Qg3 {[%emt 0:00:00]} Rxb5 {[%emt 0:00:00]} 41. Bxb5 {[%emt 0:00:00]} Nf8 {[%emt 0:00:00]} 42. Rxf6 {[%emt 0:00:00]} Kxf6 {[%emt 0:00:00]} 43. Qxh3 {[%emt 0:00:00]} Ng6 {[%emt 0:00:00]} 44. Ne2 {[%emt 0:00:00]} h4 {[%emt 0:00:00]} 45. Bd2 {[%emt 0:00:00]} Qc8 {[%emt 0:00:00]} 46. Bd7 {[%emt 0:00:00]} Qc5 {[%emt 0:00:00]} 47. Be6 {[%emt 0:00:00]} Kg7 {[%emt 0:00:09]} 48. Bxf7 {[%emt 0:00:00]} Kxf7 {[%emt 0:00:14]} 49. Qd7+ {[%emt 0:00:00]} Kf6 {[%emt 0:04:29]} 50. Kf1 {[%emt 0:02:01]} h3 {[%emt 0:00:48]} 51. Qf5+ {[%emt 0:00:30]} Kg7 {[%emt 0:00:26]} 52. Bg5 {[%emt 0:00:09]} Rf8 {[%emt 0:00:46]} 53. Qd7+ {[%emt 0:00:09]} Kg8 {[%emt 0:00:22]} 54. Qe6+ {[%emt 0:00:08]} Kg7 {[%emt 0:00:20]} 55. Qxh3 {[%emt 0:00:07]} Rh8 {[%emt 0:00:48]} 56. Qd7+ {[%emt 0:00:09]} Kg8 {[%emt 0:00:29]} 57. Qe6+ {[%emt 0:00:10]} Kg7 {[%emt 0:00:22]} 58. Qf6+ {[%emt 0:00:08]} Kg8 {[%emt 0:00:23]} 59. Qxg6+ {[%emt 0:00:06]} Kf8 {[%emt 0:00:02]} 60. Qf6+ {[%emt 0:00:07]} Kg8 {[%emt 0:00:18]} 61. Qe6+ {[%emt 0:00:32]} Kh7 {[%emt 0:00:41]} 62. Qf7# {[%emt 0:11:14]} 1-0

[Event "15th Arad Open 2022"]
[Site "Arad"]
[Date "2022.08.09"]
[Round "2.2"]
[White "Zubac, Marius"]
[Black "Srbis, Jurica"]
[Result "0-1"]
[ECO "E20"]
[WhiteElo "2025"]
[BlackElo "2472"]
[Annotator "ChessBase"]
[PlyCount "118"]
[EventDate "2022.08.08"]
[EventType "swiss"]
[EventCountry "ROU"]
[SourceTitle "playchess.com"]
[Source "ChessBase"]
[SourceQuality "1"]
[TimeControl "5400+30"]

1. d4 {[%emt 0:00:13]} Nf6 {[%emt 0:00:22]} 2. c4 {[%emt 0:00:11]} e6 {[%emt 0:00:37]} 3. Nc3 {[%emt 0:00:23]} Bb4 {[%emt 0:00:34]} 4. f3 {[%emt 0:00:12]} O-O {[%emt 0:00:57]} 5. e4 {[%emt 0:03:09]} d5 {[%emt 0:01:10]} 6. e5 {[%emt 0:02:00]} Nfd7 {[%emt 0:00:09]} 7. a3 {[%emt 0:05:35]} Bxc3+ {[%emt 0:01:16]} 8. bxc3 {[%emt 0:00:02]} dxc4 {[%emt 0:00:24]} 9. f4 {[%emt 0:00:33]} b5 {[%emt 0:00:26]} 10. a4 {[%emt 0:01:38]} Ba6 {[%emt 0:19:44]} 11. Qf3 {[%emt 0:06:35]} Nb6 {[%emt 0:02:51]} 12. Ba3 {[%emt 0:03:06]} Re8 {[%emt 0:00:35]} 13. Nh3 {[%emt 0:01:06]} Qd5 {[%emt 0:01:56]} 14. Qh5 {[%emt 0:02:51]} Qe4+ {[%emt 0:08:14]} 15. Be2 {[%emt 0:01:54]} Nxa4 {[%emt 0:10:35]} 16. Qxf7+ {[%emt 0:09:24]} Kxf7 {[%emt 0:00:06]} 17. Ng5+ {[%emt 0:00:05]} Kg8 {[%emt 0:00:06]} 18. Nxe4 {[%emt 0:00:04]} Bb7 {[%emt 0:08:43]} 19. Bf3 {[%emt 0:00:25]} Nc6 {[%emt 0:00:15]} 20. O-O {[%emt 0:03:02]} a5 {[%emt 0:06:45]} 21. Rfb1 {[%emt 0:05:51]} Na7 {[%emt 0:00:46]} 22. Bc5 {[%emt 0:15:16]} Nxc5 {[%emt 0:06:56]} 23. dxc5 {[%emt 0:01:01]} a4 {[%emt 0:00:45]} 24. Nf6+ {[%emt 0:02:48]} gxf6 {[%emt 0:00:18]} 25. Bxb7 {[%emt 0:00:05]} Rab8 {[%emt 0:00:47]} 26. Bf3 {[%emt 0:02:47]} fxe5 {[%emt 0:00:29]} 27. fxe5 {[%emt 0:00:02]} Rbd8 {[%emt 0:01:13]} 28. Rd1 {[%emt 0:00:42]} Rf8 {[%emt 0:01:22]} 29. Kf2 {[%emt 0:05:01]} Rxd1 30. Rxd1 {[%emt 0:00:03]} Nc6 {[%emt 0:07:31]} 31. Rb1 {[%emt 0:03:29]} Nxe5 {[%emt 0:04:19]} 32. Rxb5 {[%emt 0:00:16]} Nxf3 {[%emt 0:00:11]} 33. gxf3 {[%emt 0:00:09]} Ra8 {[%emt 0:00:03]} 34. Rb2 {[%emt 0:00:52]} a3 {[%emt 0:00:46]} 35. Ra2 {[%emt 0:00:01]} e5 {[%emt 0:00:55]} 36. f4 {[%emt 0:09:23]} Kf7 {[%emt 0:00:05]} 37. fxe5 {[%emt 0:01:21]} Ke6 {[%emt 0:00:05]} 38. Ke3 {[%emt 0:02:05]} Kxe5 {[%emt 0:00:06]} 39. Kd2 {[%emt 0:00:04]} Kd5 {[%emt 0:03:16]} 40. Kc1 {[%emt 0:00:00]} Kxc5 {[%emt 0:00:00]} 41. Kb1 {[%emt 0:00:00]} Rb8+ {[%emt 0:00:00]} 42. Ka1 {[%emt 0:00:00]} Rb3 {[%emt 0:00:00]} 43. Rf2 {[%emt 0:00:00]} Rxc3 {[%emt 0:00:00]} 44. Rf7 {[%emt 0:00:00]} Kb4 {[%emt 0:00:00]} 45. Rxc7 {[%emt 0:00:00]} Rc1+ {[%emt 0:00:00]} 46. Ka2 {[%emt 0:00:00]} Rc2+ {[%emt 0:00:00]} 47. Ka1 {[%emt 0:00:00]} Rxh2 {[%emt 0:00:00]} 48. Rb7+ {[%emt 0:00:00]} Kc3 {[%emt 0:00:00]} 49. Ra7 {[%emt 0:00:00]} Kb3 {[%emt 0:00:00]} 50. Rb7+ {[%emt 0:00:00]} Kc2 {[%emt 0:00:00]} 51. Ka2 {[%emt 0:00:00]} Kd1+ {[%emt 0:00:00]} 52. Kxa3 {[%emt 0:00:00]} c3 {[%emt 0:00:00]} 53. Rd7+ {[%emt 0:00:00]} Kc2 {[%emt 0:00:00]} 54. Rc7 {[%emt 0:00:00]} h5 {[%emt 0:00:00]} 55. Rc5 {[%emt 0:00:00]} h4 {[%emt 0:00:00]} 56. Rc8 {[%emt 0:00:00]} Rg2 {[%emt 0:01:13]} 57. Rc4 {[%emt 0:00:00]} h3 {[%emt 0:00:17]} 58. Rh4 {[%emt 0:00:00]} h2 {[%emt 0:00:31]} 59. Rh3 {[%emt 0:00:00]} Kb1 {[%emt 0:00:40]} 0-1

[Event "15th Arad Open 2022"]
[Site "Arad"]
[Date "2022.08.09"]
[Round "2.3"]
[White "Ramoutar, Alan-Safar"]
[Black "Ambru, Dan-Calin"]
[Result "1-0"]
[ECO "B30"]
[WhiteElo "2453"]
[BlackElo "2001"]
[Annotator "RC"]
[PlyCount "47"]
[EventDate "2022.08.08"]
[EventType "swiss"]
[EventCountry "ROU"]
[SourceTitle "playchess.com"]
[Source "ChessBase"]
[SourceQuality "1"]
[TimeControl "5400+30"]

1. e4 {[%emt 0:00:03]} c5 {[%emt 0:05:22]} 2. Nf3 {[%emt 0:00:13]} Nc6 {[%emt 0:00:11]} 3. Bc4 {[%emt 0:00:07]} e6 {[%emt 0:01:00]} 4. O-O {[%emt 0:00:18]} Nf6 {[%emt 0:07:07]} 5. Re1 {[%emt 0:00:48]} d6 {[%emt 0:06:15]} 6. Bb5 {[%emt 0:00:43]} e5 {[%emt 0:10:45]} 7. c3 {[%emt 0:09:16]} Bg4 {[%emt 0:02:41]} 8. d4 {[%emt 0:08:42]} cxd4 {[%emt 0:07:32]} 9. cxd4 {[%emt 0:00:36]} Bxf3 {[%emt 0:00:10]} 10. Qxf3 {[%emt 0:02:05]} a6 {[%emt 0:02:43]} 11. Bxc6+ {[%emt 0:01:19]} bxc6 {[%emt 0:00:05]} 12. dxe5 {[%emt 0:03:06]} dxe5 {[%emt 0:00:55]} 13. Bg5 {[%emt 0:11:50]} Be7 {[%emt 0:02:16]} 14. Rd1 {[%emt 0:02:23]} Qc7 {[%emt 0:05:03]} 15. Nd2 {[%emt 0:01:50]} O-O {[%emt 0:00:24]} 16. Nc4 {[%emt 0:00:47]} Rfd8 {[%emt 0:05:39]} 17. Bd2 {[%emt 0:11:43]} a5 {[%emt 0:10:56]} 18. Bc3 {[%emt 0:00:29]} Nd7 {[%emt 0:01:02]} 19. Qf5 {[%emt 0:04:15]} g6 {[%emt 0:11:15]} 20. Bxe5 {[%emt 0:07:14]} Qb7 {[%emt 0:01:08]} 21. Qf3 {[%emt 0:01:35]} Qb5 {[%emt 0:04:46]} 22. Bd6 {[%emt 0:08:20]} Bxd6 {[%emt 0:05:54]} 23. Nxd6 {[%emt 0:00:28]} Ne5 {[%emt 0:00:07]} 24. Qc3 {[%emt 0:02:41]} 1-0

[Event "15th Arad Open 2022"]
[Site "Arad"]
[Date "2022.08.09"]
[Round "2.4"]
[White "Anghel, Iulian-Mihai"]
[Black "David, Alexandru-Vasile"]
[Result "0-1"]
[ECO "B81"]
[WhiteElo "2015"]
[BlackElo "2433"]
[Annotator "RC"]
[PlyCount "68"]
[EventDate "2022.08.08"]
[EventType "swiss"]
[EventCountry "ROU"]
[SourceTitle "playchess.com"]
[Source "ChessBase"]
[SourceQuality "1"]
[TimeControl "5400+30"]

1. e4 {[%emt 0:00:05]} c5 {[%emt 0:00:10]} 2. Nf3 {[%emt 0:00:06]} Nc6 {[%emt 0:00:06]} 3. d4 {[%emt 0:00:08]} cxd4 {[%emt 0:00:06]} 4. Nxd4 {[%emt 0:00:06]} Nf6 {[%emt 0:00:07]} 5. Nc3 {[%emt 0:00:05]} d6 {[%emt 0:00:04]} 6. h3 {[%emt 0:07:25]} e6 {[%emt 0:01:47]} 7. g4 {[%emt 0:01:05]} Be7 {[%emt 0:00:24]} 8. Bg2 {[%emt 0:02:38]} O-O {[%emt 0:01:49]} 9. O-O {[%emt 0:03:00]} a6 {[%emt 0:03:57]} 10. Be3 {[%emt 0:03:46]} Ne5 {[%emt 0:04:28]} 11. b3 {[%emt 0:08:50]} Qc7 {[%emt 0:09:05]} 12. Qe1 {[%emt 0:14:55]} Nfd7 {[%emt 0:02:29]} 13. f4 {[%emt 0:09:29]} Nc6 {[%emt 0:00:13]} 14. Nce2 {[%emt 0:02:38]} Re8 {[%emt 0:02:51]} 15. c4 {[%emt 0:04:42]} Nxd4 {[%emt 0:04:26]} 16. Nxd4 {[%emt 0:01:21]} e5 {[%emt 0:00:24]} 17. Nf5 {[%emt 0:04:10]} exf4 {[%emt 0:00:50]} 18. Bxf4 {[%emt 0:02:46]} Ne5 {[%emt 0:00:09]} 19. Rd1 {[%emt 0:03:34]} Be6 {[%emt 0:03:56]} 20. Qg3 {[%emt 0:05:25]} b5 {[%emt 0:01:20]} 21. cxb5 {[%emt 0:02:26]} axb5 {[%emt 0:03:47]} 22. Rd2 {[%emt 0:01:07]} b4 {[%emt 0:01:28]} 23. Rfd1 {[%emt 0:02:04]} Rad8 {[%emt 0:24:27]} 24. Nxe7+ {[%emt 0:09:49]} Qxe7 {[%emt 0:00:05]} 25. Bxe5 {[%emt 0:03:37]} dxe5 {[%emt 0:00:09]} 26. Qxe5 {[%emt 0:02:08]} Rxd2 {[%emt 0:02:43]} 27. Rxd2 {[%emt 0:00:05]} h6 {[%emt 0:00:21]} 28. Qd6 {[%emt 0:02:32]} Qg5 {[%emt 0:02:54]} 29. Kf2 {[%emt 0:03:10]} Rc8 {[%emt 0:00:47]} 30. Bf3 {[%emt 0:01:02]} h5 {[%emt 0:01:12]} 31. Kg3 {[%emt 0:01:05]} Kh7 {[%emt 0:01:45]} 32. h4 {[%emt 0:00:30]} Qe3 {[%emt 0:00:42]} 33. Qd3 {[%emt 0:00:34]} Qe1+ {[%emt 0:00:14]} 34. Kh3 {[%emt 0:00:34]} hxg4+ {[%emt 0:00:41]} 0-1

[Event "15th Arad Open 2022"]
[Site "Arad"]
[Date "2022.08.09"]
[Round "2.5"]
[White "Secheres, Adrian-Simion"]
[Black "Chima, Radu-Niculin"]
[Result "1/2-1/2"]
[ECO "E01"]
[WhiteElo "2360"]
[BlackElo "2005"]
[Annotator "RC"]
[PlyCount "82"]
[EventDate "2022.08.08"]
[EventType "swiss"]
[EventCountry "ROU"]
[SourceTitle "playchess.com"]
[Source "ChessBase"]
[SourceQuality "1"]
[TimeControl "5400+30"]

1. d4 {[%emt 0:00:07]} e6 {[%emt 0:00:10]} 2. c4 {[%emt 0:00:21]} d5 {[%emt 0:00:07]} 3. Nc3 {[%emt 0:00:20]} Nf6 {[%emt 0:00:16]} 4. Nf3 {[%emt 1:31:42]} c6 {[%emt 0:03:24]} 5. g3 Nbd7 {[%emt 0:00:50]} 6. Bg2 {[%emt 0:00:00]} Bb4 {[%emt 0:02:54]} 7. O-O {[%emt 0:00:00]} O-O {[%emt 0:01:12]} 8. Qd3 {[%emt 0:00:00]} b6 {[%emt 0:04:26]} 9. a3 {[%emt 0:00:00]} Bxc3 {[%emt 0:00:21]} 10. Qxc3 {[%emt 0:00:00]} Ne4 {[%emt 0:01:27]} 11. Qc2 {[%emt 0:00:00]} Ba6 {[%emt 1:20:53]} 12. b3 {[%emt 0:00:00]} f5 {[%emt 0:00:00]} 13. a4 {[%emt 0:00:00]} Re8 {[%emt 0:00:00]} 14. Ba3 {[%emt 0:00:00]} Rc8 {[%emt 0:00:00]} 15. Rfd1 {[%emt 0:00:00]} Bb7 {[%emt 0:00:00]} 16. Rac1 {[%emt 0:00:00]} c5 {[%emt 0:00:00]} 17. dxc5 {[%emt 0:00:00]} Ndxc5 {[%emt 0:00:00]} 18. Ne5 {[%emt 0:00:00]} Qc7 {[%emt 0:00:00]} 19. Bb2 {[%emt 0:00:00]} a5 {[%emt 0:00:00]} 20. Bd4 {[%emt 0:00:00]} Red8 {[%emt 0:00:00]} 21. Qb2 {[%emt 0:00:00]} Qe7 {[%emt 0:00:00]} 22. Qa3 {[%emt 0:00:00]} Qe8 {[%emt 0:00:00]} 23. cxd5 {[%emt 0:00:00]} Bxd5 {[%emt 0:00:00]} 24. f3 {[%emt 0:00:00]} Nf6 {[%emt 0:00:00]} 25. Bxc5 {[%emt 0:00:00]} Rxc5 {[%emt 0:00:00]} 26. Rxc5 {[%emt 0:00:00]} bxc5 {[%emt 0:00:00]} 27. Rc1 {[%emt 0:01:45]} Rb8 {[%emt 0:00:00]} 28. Qxc5 {[%emt 0:02:36]} Bxb3 {[%emt 0:00:00]} 29. Nc6 {[%emt 0:00:15]} Ra8 {[%emt 0:00:00]} 30. f4 {[%emt 0:05:34]} Bd5 {[%emt 0:00:00]} 31. Bxd5 {[%emt 0:01:26]} exd5 {[%emt 0:00:00]} 32. Ne7+ {[%emt 0:01:22]} Kh8 {[%emt 0:02:35]} 33. Nxf5 {[%emt 0:00:25]} Qxe2 {[%emt 0:02:17]} 34. Qc7 {[%emt 0:00:29]} Qg4 {[%emt 0:02:08]} 35. Nd6 {[%emt 0:00:48]} h6 {[%emt 0:01:40]} 36. Nf7+ {[%emt 0:00:34]} Kg8 {[%emt 0:00:40]} 37. Ne5 {[%emt 0:00:30]} Qe2 {[%emt 0:01:16]} 38. Qf7+ {[%emt 0:00:40]} Kh8 {[%emt 0:00:53]} 39. Qc7 {[%emt 0:00:34]} Qe3+ {[%emt 0:00:54]} 40. Kg2 {[%emt 0:00:00]} Qe2+ {[%emt 0:00:00]} 41. Kg1 {[%emt 0:00:00]} Qe3+ {[%emt 0:02:37]} 1/2-1/2